[Event "Titled Tuesday Blitz December 06 Early 2022"]
[White "Terzi, Alexei"]
[Black "Molina, Roberto Junio Brito"]
[WhiteFideId "13505076"]
[BlackFideId "2109450"]
[WhiteElo "2172"]
[BlackElo "2376"]
[Result "0-1"]
[Round "04"]
[TimeControl "180+1"]
[Date "2022.12.07"]
[WhiteClock "0:00:23"]
[BlackClock "0:00:45"]

1. e4 {[%clk 0:03:00]}  c6 {[%clk 0:02:59]} 2. d4 {[%clk 0:03:00]}  d5 {[%clk 0:03:00]} 3. exd5 {[%clk 0:02:59]}  cxd5 {[%clk 0:03:00]} 4. Bd3 {[%clk 0:03:00]}  Nc6 {[%clk 0:03:00]} 5. c3 {[%clk 0:03:00]}  g6 {[%clk 0:03:00]} 6. Nf3 {[%clk 0:02:57]}  Bf5 {[%clk 0:02:59]} 7. Be2 {[%clk 0:02:55]}  Bg7 {[%clk 0:02:53]} 8. O-O {[%clk 0:02:56]}  Nf6 {[%clk 0:02:53]} 9. h3 {[%clk 0:02:52]}  O-O {[%clk 0:02:53]} 10. Bf4 {[%clk 0:02:53]}  Rc8 {[%clk 0:02:45]} 11. Nbd2 {[%clk 0:02:48]}  Ne4 {[%clk 0:02:40]} 12. Nxe4 {[%clk 0:02:45]}  Bxe4 {[%clk 0:02:41]} 13. Qb3 {[%clk 0:02:41]}  Na5 {[%clk 0:02:37]} 14. Qa3 {[%clk 0:02:35]}  a6 {[%clk 0:02:34]} 15. Nd2 {[%clk 0:02:33]}  Bf5 {[%clk 0:02:31]} 16. Bf3 {[%clk 0:02:29]}  Re8 {[%clk 0:02:27]} 17. Rfe1 {[%clk 0:02:23]}  Bf8 {[%clk 0:02:20]} 18. Qa4 {[%clk 0:02:22]}  b5 {[%clk 0:02:17]} 19. Qd1 {[%clk 0:02:20]}  Nc4 {[%clk 0:02:17]} 20. Nxc4 {[%clk 0:02:12]}  Rxc4 {[%clk 0:02:16]} 21. a3 {[%clk 0:02:11]}  Bc8 {[%clk 0:02:12]} 22. Qd2 {[%clk 0:02:09]}  Bb7 {[%clk 0:02:03]} 23. Bh6 {[%clk 0:02:06]}  Bg7 {[%clk 0:02:03]} 24. Bxg7 {[%clk 0:02:04]}  Kxg7 {[%clk 0:02:04]} 25. Re5 {[%clk 0:02:02]}  e6 {[%clk 0:02:01]} 26. g3 {[%clk 0:02:00]}  Rc7 {[%clk 0:02:00]} 27. h4 {[%clk 0:01:58]}  f6 {[%clk 0:01:57]} 28. Re3 {[%clk 0:01:56]}  e5 {[%clk 0:01:56]} 29. Rae1 {[%clk 0:01:45]}  e4 {[%clk 0:01:54]} 30. Bd1 {[%clk 0:01:39]}  f5 {[%clk 0:01:54]} 31. R3e2 {[%clk 0:01:38]}  Qd6 {[%clk 0:01:51]} 32. Qf4 {[%clk 0:01:32]}  Qxf4 {[%clk 0:01:49]} 33. gxf4 {[%clk 0:01:33]}  Kf6 {[%clk 0:01:48]} 34. Kh2 {[%clk 0:01:31]}  Rg7 {[%clk 0:01:47]} 35. Re3 {[%clk 0:01:30]}  h6 {[%clk 0:01:47]} 36. Rg1 {[%clk 0:01:30]}  g5 {[%clk 0:01:47]} 37. fxg5+ {[%clk 0:01:23]}  hxg5 {[%clk 0:01:47]} 38. hxg5+ {[%clk 0:01:20]}  Rxg5 {[%clk 0:01:47]} 39. Rxg5 {[%clk 0:01:18]}  Kxg5 {[%clk 0:01:48]} 40. Rg3+ {[%clk 0:01:18]}  Kf6 {[%clk 0:01:48]} 41. Rh3 {[%clk 0:01:17]}  Bc8 {[%clk 0:01:36]} 42. Rh6+ {[%clk 0:01:10]}  Kg5 {[%clk 0:01:36]} 43. Rd6 {[%clk 0:01:10]}  Kf4 {[%clk 0:01:16]} 44. Rxd5 {[%clk 0:00:51]}  Rh8+ {[%clk 0:01:14]} 45. Kg2 {[%clk 0:00:50]}  e3 {[%clk 0:01:15]} 46. fxe3+ {[%clk 0:00:50]}  Kxe3 {[%clk 0:01:16]} 47. Bf3 {[%clk 0:00:43]}  Rg8+ {[%clk 0:01:15]} 48. Kf1 {[%clk 0:00:39]}  Kxf3 {[%clk 0:01:14]} 49. Re5 {[%clk 0:00:37]}  f4 {[%clk 0:01:13]} 50. d5 {[%clk 0:00:37]}  Bh3+ {[%clk 0:01:04]} 51. Ke1 {[%clk 0:00:36]}  Rg2 {[%clk 0:01:02]} 52. d6 {[%clk 0:00:35]}  Rxb2 {[%clk 0:01:00]} 53. Rh5 {[%clk 0:00:34]}  Bg4 {[%clk 0:00:57]} 54. Rg5 {[%clk 0:00:30]}  Rh2 {[%clk 0:00:49]} 55. Rg7 {[%clk 0:00:23]}  Rh6 {[%clk 0:00:47]} 56. d7 {[%clk 0:00:23]}  Re6+ {[%clk 0:00:45]} 0-1


[Site "https://www.chess.com"]

[Event "Titled Tuesday Blitz December 06 Early 2022"]
[White "Tologon tegin, Semetei"]
[Black "De Arruda, Leandro Formes"]
[WhiteFideId "13800574"]
[BlackFideId "22722009"]
[WhiteElo "2264"]
[BlackElo "1880"]
[Result "1-0"]
[Round "04"]
[TimeControl "180+1"]
[Date "2022.12.07"]
[WhiteClock "0:01:17"]
[BlackClock "0:00:05"]

1. e4 {[%clk 0:02:56]}  e6 {[%clk 0:02:59]} 2. d4 {[%clk 0:02:54]}  d5 {[%clk 0:03:00]} 3. e5 {[%clk 0:02:55]}  c5 {[%clk 0:03:00]} 4. c3 {[%clk 0:02:56]}  Nc6 {[%clk 0:03:01]} 5. Nf3 {[%clk 0:02:56]}  Qb6 {[%clk 0:03:01]} 6. Be2 {[%clk 0:02:57]}  Bd7 {[%clk 0:03:01]} 7. O-O {[%clk 0:02:57]}  cxd4 {[%clk 0:03:02]} 8. cxd4 {[%clk 0:02:57]}  Nge7 {[%clk 0:03:03]} 9. Na3 {[%clk 0:02:57]}  Nf5 {[%clk 0:03:00]} 10. Nc2 {[%clk 0:02:57]}  Nb4 {[%clk 0:02:40]} 11. Ne3 {[%clk 0:02:35]}  Be7 {[%clk 0:02:31]} 12. Nxf5 {[%clk 0:02:35]}  exf5 {[%clk 0:02:32]} 13. a3 {[%clk 0:02:35]}  Nc6 {[%clk 0:02:31]} 14. b4 {[%clk 0:02:35]}  a6 {[%clk 0:02:29]} 15. Be3 {[%clk 0:02:33]}  Be6 {[%clk 0:02:28]} 16. Rc1 {[%clk 0:02:33]}  O-O {[%clk 0:02:26]} 17. Qd2 {[%clk 0:02:33]}  f6 {[%clk 0:02:21]} 18. Rfe1 {[%clk 0:02:27]}  a5 {[%clk 0:02:05]} 19. b5 {[%clk 0:02:25]}  Na7 {[%clk 0:02:05]} 20. Qb2 {[%clk 0:02:19]}  Rac8 {[%clk 0:02:02]} 21. a4 {[%clk 0:02:17]}  Rxc1 {[%clk 0:01:46]} 22. Rxc1 {[%clk 0:02:18]}  Rc8 {[%clk 0:01:46]} 23. Bd3 {[%clk 0:02:11]}  Qd8 {[%clk 0:01:25]} 24. g3 {[%clk 0:01:58]}  Rxc1+ {[%clk 0:01:18]} 25. Qxc1 {[%clk 0:01:58]}  Qc8 {[%clk 0:01:16]} 26. Qe1 {[%clk 0:01:55]}  b6 {[%clk 0:01:14]} 27. h4 {[%clk 0:01:52]}  Bb4 {[%clk 0:00:52]} 28. Qb1 {[%clk 0:01:51]}  Qd7 {[%clk 0:00:18]} 29. h5 {[%clk 0:01:44]}  Nc8 {[%clk 0:00:18]} 30. h6 {[%clk 0:01:42]}  g6 {[%clk 0:00:17]} 31. exf6 {[%clk 0:01:42]}  Nd6 {[%clk 0:00:17]} 32. Ne5 {[%clk 0:01:40]}  Qd8 {[%clk 0:00:14]} 33. Bg5 {[%clk 0:01:36]}  Kf8 {[%clk 0:00:11]} 34. Nc6 {[%clk 0:01:32]}  Qd7 {[%clk 0:00:10]} 35. Nxb4 {[%clk 0:01:32]}  axb4 {[%clk 0:00:10]} 36. Qxb4 {[%clk 0:01:33]}  Kf7 {[%clk 0:00:11]} 37. a5 {[%clk 0:01:32]}  bxa5 {[%clk 0:00:09]} 38. Qxa5 {[%clk 0:01:33]}  Nc4 {[%clk 0:00:09]} 39. Qb4 {[%clk 0:01:32]}  Qb7 {[%clk 0:00:08]} 40. Qc5 {[%clk 0:01:16]}  Bd7 {[%clk 0:00:05]} 41. Qe7+ {[%clk 0:01:16]}  Kg8 {[%clk 0:00:05]} 42. Qg7# {[%clk 0:01:17]} 1-0


[Site "https://www.chess.com"]

[Event "Titled Tuesday Blitz December 06 Early 2022"]
[White "Urbina Perez, Juan Antonio"]
[Black "Darini, Pouria"]
[WhiteFideId "2217368"]
[BlackFideId "12502200"]
[WhiteElo "2197"]
[BlackElo "2482"]
[Result "0-1"]
[Round "04"]
[TimeControl "180+1"]
[Date "2022.12.07"]
[WhiteClock "0:00:09"]
[BlackClock "0:00:07"]

1. d4 {[%clk 0:03:00]}  Nf6 {[%clk 0:03:00]} 2. c4 {[%clk 0:02:59]}  e6 {[%clk 0:03:00]} 3. Nf3 {[%clk 0:02:58]}  d5 {[%clk 0:03:00]} 4. g3 {[%clk 0:02:59]}  Be7 {[%clk 0:02:57]} 5. Bg2 {[%clk 0:02:59]}  O-O {[%clk 0:02:58]} 6. O-O {[%clk 0:02:59]}  dxc4 {[%clk 0:02:58]} 7. Ne5 {[%clk 0:03:00]}  Nc6 {[%clk 0:02:58]} 8. Bxc6 {[%clk 0:03:00]}  bxc6 {[%clk 0:02:59]} 9. Nxc6 {[%clk 0:02:59]}  Qe8 {[%clk 0:03:00]} 10. Nxe7+ {[%clk 0:03:00]}  Qxe7 {[%clk 0:03:00]} 11. Qa4 {[%clk 0:03:00]}  e5 {[%clk 0:02:58]} 12. dxe5 {[%clk 0:03:00]}  Qxe5 {[%clk 0:02:59]} 13. Qxc4 {[%clk 0:03:00]}  Be6 {[%clk 0:02:47]} 14. Qc2 {[%clk 0:02:59]}  Bf5 {[%clk 0:02:46]} 15. Qc4 {[%clk 0:02:58]}  Be6 {[%clk 0:02:45]} 16. Qc2 {[%clk 0:02:58]}  Qh5 {[%clk 0:02:19]} 17. Nc3 {[%clk 0:02:32]}  Rfe8 {[%clk 0:02:03]} 18. Re1 {[%clk 0:02:10]}  Bf5 {[%clk 0:01:50]} 19. Qa4 {[%clk 0:02:00]}  Ne4 {[%clk 0:01:41]} 20. Nxe4 {[%clk 0:01:55]}  Bxe4 {[%clk 0:01:40]} 21. Bf4 {[%clk 0:01:44]}  Re6 {[%clk 0:01:35]} 22. f3 {[%clk 0:01:39]}  Bc6 {[%clk 0:01:31]} 23. Qc4 {[%clk 0:01:28]}  Rae8 {[%clk 0:01:28]} 24. g4 {[%clk 0:01:03]}  Qa5 {[%clk 0:01:00]} 25. b4 {[%clk 0:00:59]}  Qb6+ {[%clk 0:00:56]} 26. Qc5 {[%clk 0:00:59]}  Bxf3 {[%clk 0:00:54]} 27. Qxb6 {[%clk 0:00:52]}  cxb6 {[%clk 0:00:55]} 28. e3 {[%clk 0:00:51]}  Bxg4 {[%clk 0:00:54]} 29. Rac1 {[%clk 0:00:51]}  Bf3 {[%clk 0:00:32]} 30. Rc7 {[%clk 0:00:47]}  a6 {[%clk 0:00:32]} 31. Kf2 {[%clk 0:00:47]}  Be4 {[%clk 0:00:31]} 32. Rec1 {[%clk 0:00:47]}  h5 {[%clk 0:00:26]} 33. Rc8 {[%clk 0:00:46]}  Rxc8 {[%clk 0:00:24]} 34. Rxc8+ {[%clk 0:00:47]}  Kh7 {[%clk 0:00:25]} 35. Rc7 {[%clk 0:00:47]}  f6 {[%clk 0:00:20]} 36. h4 {[%clk 0:00:47]}  b5 {[%clk 0:00:19]} 37. a3 {[%clk 0:00:47]}  Kg6 {[%clk 0:00:19]} 38. Rc5 {[%clk 0:00:45]}  Re7 {[%clk 0:00:13]} 39. Rc7 {[%clk 0:00:44]}  Re6 {[%clk 0:00:09]} 40. Rc5 {[%clk 0:00:43]}  Re8 {[%clk 0:00:10]} 41. Rc7 {[%clk 0:00:30]}  Rd8 {[%clk 0:00:10]} 42. Ra7 {[%clk 0:00:30]}  Rd2+ {[%clk 0:00:11]} 43. Ke1 {[%clk 0:00:30]}  Ra2 {[%clk 0:00:04]} 44. Rxa6 {[%clk 0:00:30]}  Kf5 {[%clk 0:00:05]} 45. a4 {[%clk 0:00:21]}  g5 {[%clk 0:00:04]} 46. hxg5 {[%clk 0:00:19]}  fxg5 {[%clk 0:00:05]} 47. Bd6 {[%clk 0:00:18]}  Rxa4 {[%clk 0:00:05]} 48. Rxa4 {[%clk 0:00:17]}  bxa4 {[%clk 0:00:06]} 49. b5 {[%clk 0:00:17]}  Bb7 {[%clk 0:00:04]} 50. Kf2 {[%clk 0:00:17]}  h4 {[%clk 0:00:04]} 51. Be7 {[%clk 0:00:10]}  Kg4 {[%clk 0:00:04]} 52. Kg1 {[%clk 0:00:09]}  Kh5 {[%clk 0:00:05]} 53. Kh2 {[%clk 0:00:09]}  g4 {[%clk 0:00:05]} 54. Ba3 {[%clk 0:00:07]}  g3+ {[%clk 0:00:06]} 55. Kh3 {[%clk 0:00:08]}  Bc8+ {[%clk 0:00:06]} 56. Kg2 {[%clk 0:00:08]}  Kg4 {[%clk 0:00:07]} 57. Bd6 {[%clk 0:00:08]}  h3+ {[%clk 0:00:07]} 58. Kg1 {[%clk 0:00:09]}  Bb7 {[%clk 0:00:08]} 59. e4 {[%clk 0:00:08]}  Bxe4 {[%clk 0:00:07]} 60. b6 {[%clk 0:00:09]}  h2+ {[%clk 0:00:07]} 0-1


[Site "https://www.chess.com"]

[Event "Titled Tuesday Blitz December 06 Early 2022"]
[White "Weetik, Vjacheslav"]
[Black "Przybylski, Wojciech"]
[WhiteFideId "4153472"]
[BlackFideId "1117599"]
[WhiteElo "2469"]
[BlackElo "2217"]
[Result "0-1"]
[Round "04"]
[TimeControl "180+1"]
[Date "2022.12.07"]
[WhiteClock "0:00:02"]
[BlackClock "0:00:19"]

1. d4 {[%clk 0:02:59]}  Nf6 {[%clk 0:02:59]} 2. Nf3 {[%clk 0:02:59]}  e6 {[%clk 0:02:58]} 3. c4 {[%clk 0:02:59]}  b6 {[%clk 0:02:58]} 4. g3 {[%clk 0:02:59]}  Bb7 {[%clk 0:02:57]} 5. Bg2 {[%clk 0:02:59]}  Be7 {[%clk 0:02:57]} 6. O-O {[%clk 0:02:59]}  O-O {[%clk 0:02:56]} 7. d5 {[%clk 0:02:59]}  d6 {[%clk 0:02:51]} 8. Nc3 {[%clk 0:02:51]}  e5 {[%clk 0:02:49]} 9. e4 {[%clk 0:02:46]}  a5 {[%clk 0:02:44]} 10. Rb1 {[%clk 0:02:35]}  Nbd7 {[%clk 0:02:40]} 11. a3 {[%clk 0:02:27]}  Ne8 {[%clk 0:02:34]} 12. b4 {[%clk 0:02:26]}  f5 {[%clk 0:02:29]} 13. exf5 {[%clk 0:02:24]}  Rxf5 {[%clk 0:02:24]} 14. Ne4 {[%clk 0:02:11]}  Nf8 {[%clk 0:02:01]} 15. Bh3 {[%clk 0:02:06]}  Rf7 {[%clk 0:01:58]} 16. Nfg5 {[%clk 0:02:03]}  Bxg5 {[%clk 0:01:50]} 17. Nxg5 {[%clk 0:01:40]}  Rf6 {[%clk 0:01:49]} 18. f4 {[%clk 0:01:32]}  Bc8 {[%clk 0:01:40]} 19. f5 {[%clk 0:01:09]}  axb4 {[%clk 0:01:25]} 20. axb4 {[%clk 0:01:09]}  h6 {[%clk 0:01:21]} 21. Ne4 {[%clk 0:01:09]}  Rf7 {[%clk 0:01:20]} 22. Rb2 {[%clk 0:00:55]}  Nh7 {[%clk 0:01:15]} 23. g4 {[%clk 0:00:40]}  Qh4 {[%clk 0:01:06]} 24. Qd3 {[%clk 0:00:33]}  Nef6 {[%clk 0:01:00]} 25. Qg3 {[%clk 0:00:27]}  Qxg3+ {[%clk 0:00:55]} 26. Nxg3 {[%clk 0:00:28]}  Ng5 {[%clk 0:00:38]} 27. Bxg5 {[%clk 0:00:27]}  hxg5 {[%clk 0:00:38]} 28. c5 {[%clk 0:00:24]}  Ra3 {[%clk 0:00:32]} 29. Rc1 {[%clk 0:00:20]}  Bb7 {[%clk 0:00:22]} 30. c6 {[%clk 0:00:14]}  Ba6 {[%clk 0:00:22]} 31. b5 {[%clk 0:00:14]}  Bc8 {[%clk 0:00:22]} 32. Rd1 {[%clk 0:00:09]}  Ra4 {[%clk 0:00:20]} 33. Re2 {[%clk 0:00:03]}  Nxg4 {[%clk 0:00:19]} 34. Bxg4 {[%clk 0:00:03]}  Rxg4 {[%clk 0:00:19]} 35. Rf1 {[%clk 0:00:03]}  Rf4 {[%clk 0:00:20]} 36. Ra1 {[%clk 0:00:02]}  Bxf5 {[%clk 0:00:19]} 37. Ra8+ {[%clk 0:00:02]}  Kh7 {[%clk 0:00:19]} 0-1


[Site "https://www.chess.com"]

[Event "Titled Tuesday Blitz December 06 Early 2022"]
[White "Wieczorek, Zbigniew"]
[Black "D`Arruda, Ricardo D."]
[WhiteFideId "1102001"]
[BlackFideId "100692"]
[WhiteElo "2248"]
[BlackElo "2455"]
[Result "0-1"]
[Round "04"]
[TimeControl "180+1"]
[Date "2022.12.07"]
[WhiteClock "0:00:14"]
[BlackClock "0:00:45"]

1. Nf3 {[%clk 0:03:00]}  d5 {[%clk 0:02:57]} 2. g3 {[%clk 0:02:59]}  Nf6 {[%clk 0:02:57]} 3. Bg2 {[%clk 0:03:00]}  g6 {[%clk 0:02:56]} 4. c4 {[%clk 0:02:59]}  Bg7 {[%clk 0:02:57]} 5. cxd5 {[%clk 0:02:59]}  Nxd5 {[%clk 0:02:57]} 6. d4 {[%clk 0:03:00]}  O-O {[%clk 0:02:57]} 7. O-O {[%clk 0:03:00]}  Nb6 {[%clk 0:02:55]} 8. Nc3 {[%clk 0:02:59]}  Nc6 {[%clk 0:02:55]} 9. Bg5 {[%clk 0:02:53]}  h6 {[%clk 0:02:33]} 10. Bf4 {[%clk 0:02:53]}  g5 {[%clk 0:02:31]} 11. Be3 {[%clk 0:02:53]}  Nc4 {[%clk 0:02:30]} 12. Bc1 {[%clk 0:02:46]}  Nxd4 {[%clk 0:02:27]} 13. Nxd4 {[%clk 0:02:42]}  Qxd4 {[%clk 0:02:28]} 14. Qb3 {[%clk 0:02:41]}  Na5 {[%clk 0:02:10]} 15. Qb5 {[%clk 0:02:36]}  Qe5 {[%clk 0:02:02]} 16. Nd5 {[%clk 0:02:28]}  Nc6 {[%clk 0:01:51]} 17. f4 {[%clk 0:02:18]}  Nd4 {[%clk 0:01:12]} 18. fxe5 {[%clk 0:02:10]}  Nxb5 {[%clk 0:01:11]} 19. Nxe7+ {[%clk 0:02:10]}  Kh8 {[%clk 0:01:11]} 20. Nxc8 {[%clk 0:02:07]}  Raxc8 {[%clk 0:01:09]} 21. Bxb7 {[%clk 0:02:08]}  Rb8 {[%clk 0:01:10]} 22. Bd5 {[%clk 0:02:05]}  Bxe5 {[%clk 0:01:05]} 23. Rxf7 {[%clk 0:01:09]}  Rxf7 {[%clk 0:01:04]} 24. Bxf7 {[%clk 0:01:09]}  Nd6 {[%clk 0:01:05]} 25. Bd5 {[%clk 0:01:05]}  Bxb2 {[%clk 0:01:03]} 26. Bxb2+ {[%clk 0:01:04]}  Rxb2 {[%clk 0:01:04]} 27. e4 {[%clk 0:01:03]}  Re2 {[%clk 0:00:57]} 28. Rc1 {[%clk 0:01:00]}  Nxe4 {[%clk 0:00:57]} 29. Bxe4 {[%clk 0:01:00]}  Rxe4 {[%clk 0:00:58]} 30. Rxc7 {[%clk 0:01:01]}  Ra4 {[%clk 0:00:57]} 31. Rc2 {[%clk 0:01:01]}  g4 {[%clk 0:00:55]} 32. Kg2 {[%clk 0:00:59]}  Kg7 {[%clk 0:00:55]} 33. h3 {[%clk 0:01:00]}  h5 {[%clk 0:00:55]} 34. hxg4 {[%clk 0:01:00]}  hxg4 {[%clk 0:00:56]} 35. Rb2 {[%clk 0:00:59]}  Ra3 {[%clk 0:00:54]} 36. Kh2 {[%clk 0:00:58]}  Kf6 {[%clk 0:00:54]} 37. Kg1 {[%clk 0:00:56]}  Ke5 {[%clk 0:00:53]} 38. Kg2 {[%clk 0:00:56]}  Kd5 {[%clk 0:00:53]} 39. Rf2 {[%clk 0:00:55]}  Ke5 {[%clk 0:00:49]} 40. Re2+ {[%clk 0:00:55]}  Kd4 {[%clk 0:00:49]} 41. Rf2 {[%clk 0:00:54]}  Ke3 {[%clk 0:00:47]} 42. Rb2 {[%clk 0:00:54]}  a5 {[%clk 0:00:47]} 43. Rc2 {[%clk 0:00:39]}  a4 {[%clk 0:00:43]} 44. Rb2 {[%clk 0:00:39]}  Rd3 {[%clk 0:00:42]} 45. Rb4 {[%clk 0:00:21]}  Rd2+ {[%clk 0:00:42]} 46. Kg1 {[%clk 0:00:21]}  Rd4 {[%clk 0:00:43]} 47. Rb8 {[%clk 0:00:12]}  Kf3 {[%clk 0:00:42]} 48. Rb2 {[%clk 0:00:10]}  Kxg3 {[%clk 0:00:41]} 49. Rg2+ {[%clk 0:00:11]}  Kf3 {[%clk 0:00:40]} 50. Rf2+ {[%clk 0:00:10]}  Ke3 {[%clk 0:00:41]} 51. Rb2 {[%clk 0:00:10]}  Rd1+ {[%clk 0:00:40]} 52. Kg2 {[%clk 0:00:10]}  Rd2+ {[%clk 0:00:41]} 53. Rxd2 {[%clk 0:00:09]}  Kxd2 {[%clk 0:00:42]} 54. Kg3 {[%clk 0:00:10]}  Kc2 {[%clk 0:00:43]} 55. Kxg4 {[%clk 0:00:11]}  Kb2 {[%clk 0:00:43]} 56. Kf3 {[%clk 0:00:12]}  Kxa2 {[%clk 0:00:44]} 57. Ke3 {[%clk 0:00:13]}  Kb2 {[%clk 0:00:44]} 58. Kd2 {[%clk 0:00:14]}  a3 {[%clk 0:00:45]} 0-1


[Site "https://www.chess.com"]

[Event "Titled Tuesday Blitz December 06 Early 2022"]
[White "Wojtaszek, Radoslaw"]
[Black "Golubev, Mikhail"]
[WhiteFideId "1118358"]
[BlackFideId "14100983"]
[WhiteElo "2605"]
[BlackElo "2374"]
[Result "1-0"]
[Round "04"]
[TimeControl "180+1"]
[Date "2022.12.07"]
[WhiteClock "0:00:06"]
[BlackClock "0:00:07"]

1. Nf3 {[%clk 0:03:00]}  d6 {[%clk 0:02:59]} 2. d4 {[%clk 0:02:58]}  Nf6 {[%clk 0:02:59]} 3. g3 {[%clk 0:02:58]}  g6 {[%clk 0:02:59]} 4. Bg2 {[%clk 0:02:57]}  Bg7 {[%clk 0:03:00]} 5. b3 {[%clk 0:02:58]}  O-O {[%clk 0:03:00]} 6. Bb2 {[%clk 0:02:57]}  a5 {[%clk 0:03:01]} 7. a4 {[%clk 0:02:54]}  c6 {[%clk 0:02:51]} 8. Na3 {[%clk 0:02:53]}  Bf5 {[%clk 0:02:46]} 9. Nc4 {[%clk 0:02:52]}  Na6 {[%clk 0:02:39]} 10. O-O {[%clk 0:02:46]}  Nb4 {[%clk 0:02:36]} 11. Ne3 {[%clk 0:02:42]}  Be4 {[%clk 0:02:32]} 12. c3 {[%clk 0:02:35]}  Nbd5 {[%clk 0:02:31]} 13. Nc4 {[%clk 0:02:35]}  b5 {[%clk 0:02:23]} 14. Ncd2 {[%clk 0:02:31]}  b4 {[%clk 0:02:15]} 15. c4 {[%clk 0:02:11]}  Nc3 {[%clk 0:02:10]} 16. Bxc3 {[%clk 0:01:08]}  bxc3 {[%clk 0:02:11]} 17. Nxe4 {[%clk 0:01:08]}  Nxe4 {[%clk 0:02:10]} 18. Qc2 {[%clk 0:01:07]}  d5 {[%clk 0:02:07]} 19. Rfc1 {[%clk 0:01:00]}  Rb8 {[%clk 0:02:02]} 20. e3 {[%clk 0:00:58]}  f5 {[%clk 0:01:23]} 21. Bf1 {[%clk 0:00:55]}  e6 {[%clk 0:01:17]} 22. Bd3 {[%clk 0:00:53]}  Qb6 {[%clk 0:01:11]} 23. Bxe4 {[%clk 0:00:46]}  fxe4 {[%clk 0:01:06]} 24. Ng5 {[%clk 0:00:46]}  Rf6 {[%clk 0:00:49]} 25. Qxc3 {[%clk 0:00:44]}  Qxb3 {[%clk 0:00:44]} 26. Qxb3 {[%clk 0:00:23]}  Rxb3 {[%clk 0:00:43]} 27. Rab1 {[%clk 0:00:23]}  Rb4 {[%clk 0:00:36]} 28. Rxb4 {[%clk 0:00:15]}  axb4 {[%clk 0:00:35]} 29. c5 {[%clk 0:00:15]}  h6 {[%clk 0:00:33]} 30. Nh3 {[%clk 0:00:15]}  Rf8 {[%clk 0:00:32]} 31. Nf4 {[%clk 0:00:15]}  Kf7 {[%clk 0:00:31]} 32. Rb1 {[%clk 0:00:15]}  e5 {[%clk 0:00:27]} 33. Ne2 {[%clk 0:00:12]}  exd4 {[%clk 0:00:25]} 34. exd4 {[%clk 0:00:13]}  Rb8 {[%clk 0:00:24]} 35. a5 {[%clk 0:00:13]}  Ke6 {[%clk 0:00:22]} 36. a6 {[%clk 0:00:13]}  Ra8 {[%clk 0:00:22]} 37. Rxb4 {[%clk 0:00:12]}  Rxa6 {[%clk 0:00:22]} 38. Nf4+ {[%clk 0:00:12]}  Kf5 {[%clk 0:00:21]} 39. Rb7 {[%clk 0:00:07]}  Bxd4 {[%clk 0:00:20]} 40. Rf7+ {[%clk 0:00:07]}  Bf6 {[%clk 0:00:16]} 41. Kg2 {[%clk 0:00:05]}  d4 {[%clk 0:00:15]} 42. Ne2 {[%clk 0:00:05]}  d3 {[%clk 0:00:14]} 43. Nd4+ {[%clk 0:00:04]}  Ke5 {[%clk 0:00:14]} 44. Rd7 {[%clk 0:00:04]}  d2 {[%clk 0:00:12]} 45. Nb3 {[%clk 0:00:04]}  Ra3 {[%clk 0:00:11]} 46. Nxd2 {[%clk 0:00:04]}  Rd3 {[%clk 0:00:10]} 47. Nc4+ {[%clk 0:00:04]}  Ke6 {[%clk 0:00:10]} 48. Rc7 {[%clk 0:00:04]}  Kd5 {[%clk 0:00:09]} 49. Ne3+ {[%clk 0:00:05]}  Kxc5 {[%clk 0:00:09]} 50. Rf7 {[%clk 0:00:05]}  Bd4 {[%clk 0:00:08]} 51. Ng4 {[%clk 0:00:05]}  Rd2 {[%clk 0:00:07]} 52. Re7 {[%clk 0:00:05]}  e3 {[%clk 0:00:07]} 53. Nxe3 {[%clk 0:00:04]}  Bxe3 {[%clk 0:00:07]} 54. Rxe3 {[%clk 0:00:05]}  Kd6 {[%clk 0:00:07]} 55. Re8 {[%clk 0:00:05]}  c5 {[%clk 0:00:07]} 56. Rd8+ {[%clk 0:00:06]} 1-0


[Site "https://www.chess.com"]

[Event "Titled Tuesday Blitz December 06 Early 2022"]
[White "Yeletsky, Ivan"]
[Black "Sargsyan, Anna M."]
[WhiteFideId "24180327"]
[BlackFideId "13308130"]
[WhiteElo "2391"]
[BlackElo "2284"]
[Result "0-1"]
[Round "04"]
[TimeControl "180+1"]
[Date "2022.12.06"]
[WhiteClock "0:00:45"]
[BlackClock "0:00:05"]

1. Nf3 {[%clk 0:03:00]}  d5 {[%clk 0:02:56]} 2. g3 {[%clk 0:03:00]}  Nf6 {[%clk 0:02:54]} 3. Bg2 {[%clk 0:03:00]}  g6 {[%clk 0:02:49]} 4. d3 {[%clk 0:03:00]}  Bg7 {[%clk 0:02:50]} 5. O-O {[%clk 0:03:00]}  O-O {[%clk 0:02:50]} 6. Bf4 {[%clk 0:03:01]}  c5 {[%clk 0:02:49]} 7. c4 {[%clk 0:03:01]}  Nc6 {[%clk 0:02:49]} 8. Ne5 {[%clk 0:03:01]}  Nh5 {[%clk 0:02:45]} 9. Nxc6 {[%clk 0:03:00]}  bxc6 {[%clk 0:02:46]} 10. Bc1 {[%clk 0:03:01]}  Rb8 {[%clk 0:02:45]} 11. Qc2 {[%clk 0:02:59]}  Qb6 {[%clk 0:02:45]} 12. Nc3 {[%clk 0:02:59]}  dxc4 {[%clk 0:02:33]} 13. dxc4 {[%clk 0:03:00]}  Bf5 {[%clk 0:02:32]} 14. e4 {[%clk 0:02:58]}  Be6 {[%clk 0:02:32]} 15. Na4 {[%clk 0:02:54]}  Qb4 {[%clk 0:02:23]} 16. b3 {[%clk 0:02:54]}  Bxa1 {[%clk 0:02:21]} 17. Bd2 {[%clk 0:02:54]}  Qb7 {[%clk 0:01:59]} 18. Rxa1 {[%clk 0:02:53]}  Rfd8 {[%clk 0:01:49]} 19. Ba5 {[%clk 0:02:40]}  Rd4 {[%clk 0:01:38]} 20. Nxc5 {[%clk 0:02:40]}  Qc8 {[%clk 0:01:37]} 21. Bc3 {[%clk 0:02:40]}  Rd8 {[%clk 0:01:37]} 22. Be5 {[%clk 0:02:38]}  Ra8 {[%clk 0:01:32]} 23. Re1 {[%clk 0:02:34]}  f6 {[%clk 0:01:32]} 24. Nxe6 {[%clk 0:02:13]}  Qxe6 {[%clk 0:01:33]} 25. Bc3 {[%clk 0:02:13]}  Rd7 {[%clk 0:01:31]} 26. h4 {[%clk 0:01:59]}  Rad8 {[%clk 0:01:03]} 27. Ba5 {[%clk 0:01:58]}  Rb8 {[%clk 0:00:56]} 28. Kh2 {[%clk 0:01:58]}  Qd6 {[%clk 0:00:25]} 29. Bf1 {[%clk 0:01:27]}  Ng7 {[%clk 0:00:18]} 30. c5 {[%clk 0:01:22]}  Qd4 {[%clk 0:00:14]} 31. e5 {[%clk 0:01:13]}  Nf5 {[%clk 0:00:08]} 32. Re4 {[%clk 0:00:58]}  Qd1 {[%clk 0:00:07]} 33. Bc4+ {[%clk 0:00:57]}  Kf8 {[%clk 0:00:07]} 34. exf6 {[%clk 0:00:54]}  Qxc2 {[%clk 0:00:06]} 35. Re2 {[%clk 0:00:42]}  Qxe2 {[%clk 0:00:05]} 36. Bxe2 {[%clk 0:00:43]}  exf6 {[%clk 0:00:05]} 37. Bf3 {[%clk 0:00:44]}  Rc8 {[%clk 0:00:05]} 38. Bc3 {[%clk 0:00:43]}  Nd4 {[%clk 0:00:05]} 39. Bg4 {[%clk 0:00:44]}  f5 {[%clk 0:00:05]} 40. Bd1 {[%clk 0:00:45]}  Re8 {[%clk 0:00:05]} 41. Kg2 {[%clk 0:00:45]}  Ne2 {[%clk 0:00:05]} 0-1


[Site "https://www.chess.com"]